[Event "Titled Tuesday Blitz October 31 Late 2023"]
[White "Vifleemskaia, Svetlana"]
[Black "Bilan, Danila"]
[WhiteFideId "4129490"]
[BlackFideId "24161918"]
[WhiteElo "2279"]
[BlackElo "2472"]
[Result "1-0"]
[Round "4"]
[TimeControl "180+1"]
[Date "2023.10.31"]
[WhiteClock "0:00:14"]
[BlackClock "0:00:10"]
[Board "120"]

1. d4 {[%clk 0:03:00]}  d5 {[%clk 0:02:57]} 2. c4 {[%clk 0:03:00]}  c6 {[%clk 0:02:57]} 3. cxd5 {[%clk 0:02:59]}  cxd5 {[%clk 0:02:56]} 4. Bf4 {[%clk 0:02:58]}  Nf6 {[%clk 0:02:55]} 5. Nc3 {[%clk 0:02:57]}  Nc6 {[%clk 0:02:55]} 6. e3 {[%clk 0:02:57]}  Bf5 {[%clk 0:02:53]} 7. Qb3 {[%clk 0:02:56]}  Na5 {[%clk 0:02:53]} 8. Qa4+ {[%clk 0:02:56]}  Bd7 {[%clk 0:02:52]} 9. Qc2 {[%clk 0:02:56]}  Rc8 {[%clk 0:02:52]} 10. Bd3 {[%clk 0:02:56]}  e6 {[%clk 0:02:49]} 11. Nf3 {[%clk 0:02:56]}  Nc4 {[%clk 0:02:49]} 12. Bxc4 {[%clk 0:02:49]}  Rxc4 {[%clk 0:02:38]} 13. Ne5 {[%clk 0:02:49]}  Rc8 {[%clk 0:02:34]} 14. h3 {[%clk 0:02:47]}  Bb4 {[%clk 0:02:29]} 15. O-O {[%clk 0:02:17]}  Ne4 {[%clk 0:02:20]} 16. Qb3 {[%clk 0:02:09]}  Bxc3 {[%clk 0:02:15]} 17. bxc3 {[%clk 0:02:07]}  Nd2 {[%clk 0:01:42]} 18. Qxb7 {[%clk 0:02:06]}  Nxf1 {[%clk 0:01:41]} 19. Rxf1 {[%clk 0:02:03]}  f6 {[%clk 0:01:37]} 20. Nd3 {[%clk 0:01:53]}  Qb6 {[%clk 0:01:30]} 21. Rb1 {[%clk 0:01:37]}  Qxb7 {[%clk 0:01:19]} 22. Rxb7 {[%clk 0:01:36]}  Ke7 {[%clk 0:00:55]} 23. Nc5 {[%clk 0:01:32]}  Rxc5 {[%clk 0:00:53]} 24. dxc5 {[%clk 0:01:31]}  e5 {[%clk 0:00:54]} 25. c6 {[%clk 0:01:28]}  exf4 {[%clk 0:00:51]} 26. Rxd7+ {[%clk 0:01:24]}  Ke6 {[%clk 0:00:51]} 27. Rxg7 {[%clk 0:01:17]}  fxe3 {[%clk 0:00:44]} 28. fxe3 {[%clk 0:01:15]}  Kd6 {[%clk 0:00:42]} 29. c7 {[%clk 0:01:11]}  Kc5 {[%clk 0:00:42]} 30. Rxh7 {[%clk 0:01:06]}  Rc8 {[%clk 0:00:42]} 31. Rg7 {[%clk 0:00:53]}  Kc4 {[%clk 0:00:42]} 32. h4 {[%clk 0:00:53]}  Kxc3 {[%clk 0:00:39]} 33. h5 {[%clk 0:00:53]}  Kd3 {[%clk 0:00:33]} 34. Kf2 {[%clk 0:00:53]}  f5 {[%clk 0:00:24]} 35. h6 {[%clk 0:00:43]}  f4 {[%clk 0:00:25]} 36. exf4 {[%clk 0:00:43]}  Kc2 {[%clk 0:00:21]} 37. h7 {[%clk 0:00:37]}  d4 {[%clk 0:00:22]} 38. Rg8 {[%clk 0:00:34]}  Rxc7 {[%clk 0:00:23]} 39. h8=Q {[%clk 0:00:35]}  d3 {[%clk 0:00:23]} 40. Rd8 {[%clk 0:00:25]}  Rc4 {[%clk 0:00:12]} 41. Qh7 {[%clk 0:00:22]}  Rc3 {[%clk 0:00:10]} 42. Ke3 {[%clk 0:00:20]}  a5 {[%clk 0:00:09]} 43. Rxd3 {[%clk 0:00:19]}  Rxd3+ {[%clk 0:00:09]} 44. Qxd3+ {[%clk 0:00:19]}  Kb2 {[%clk 0:00:10]} 45. f5 {[%clk 0:00:19]}  a4 {[%clk 0:00:10]} 46. f6 {[%clk 0:00:19]}  a3 {[%clk 0:00:11]} 47. f7 {[%clk 0:00:19]}  Ka1 {[%clk 0:00:11]} 48. f8=Q {[%clk 0:00:19]}  Kb2 {[%clk 0:00:12]} 49. Qf6+ {[%clk 0:00:19]}  Kc1 {[%clk 0:00:11]} 50. Qd2+ {[%clk 0:00:18]}  Kb1 {[%clk 0:00:10]} 51. Qb6+ {[%clk 0:00:16]}  Ka1 {[%clk 0:00:10]} 52. Qc3+ {[%clk 0:00:15]}  Kxa2 {[%clk 0:00:09]} 53. Qc2+ {[%clk 0:00:14]}  Ka1 {[%clk 0:00:10]} 54. Qbb1# {[%clk 0:00:14]} 1-0


[Site "https://www.chess.com"]

[Event "Titled Tuesday Blitz October 31 Late 2023"]
[White "Liu, Casper"]
[Black "Quirke, Jeffrey"]
[WhiteFideId "1454153"]
[BlackFideId "2013029"]
[WhiteElo "2457"]
[BlackElo "2229"]
[Result "0-1"]
[Round "4"]
[TimeControl "180+1"]
[Date "2023.10.31"]
[WhiteClock "0:00:00"]
[BlackClock "0:00:07"]
[Board "124"]

1. e4 {[%clk 0:03:00]}  e6 {[%clk 0:02:59]} 2. Ne2 {[%clk 0:02:58]}  d5 {[%clk 0:02:59]} 3. d3 {[%clk 0:02:55]}  Nf6 {[%clk 0:02:56]} 4. Bg5 {[%clk 0:02:52]}  dxe4 {[%clk 0:02:53]} 5. Ng3 {[%clk 0:02:51]}  Be7 {[%clk 0:02:48]} 6. Nc3 {[%clk 0:02:47]}  Nbd7 {[%clk 0:02:40]} 7. dxe4 {[%clk 0:02:41]}  O-O {[%clk 0:02:37]} 8. Bd3 {[%clk 0:02:37]}  b6 {[%clk 0:02:36]} 9. f4 {[%clk 0:02:32]}  Bb7 {[%clk 0:02:31]} 10. e5 {[%clk 0:02:31]}  Nd5 {[%clk 0:02:29]} 11. Nce4 {[%clk 0:02:20]}  Bxg5 {[%clk 0:02:20]} 12. Nxg5 {[%clk 0:01:42]}  h6 {[%clk 0:02:17]} 13. Nh7 {[%clk 0:01:38]}  Nxf4 {[%clk 0:02:11]} 14. Nxf8 {[%clk 0:01:35]}  Nxg2+ {[%clk 0:02:01]} 15. Kd2 {[%clk 0:01:29]}  Qg5+ {[%clk 0:01:54]} 16. Kc3 {[%clk 0:01:24]}  Qxe5+ {[%clk 0:01:53]} 17. Kb3 {[%clk 0:01:23]}  Nc5+ {[%clk 0:01:42]} 18. Ka3 {[%clk 0:01:20]}  Kxf8 {[%clk 0:01:24]} 19. Qh5 {[%clk 0:00:38]}  Nxd3 {[%clk 0:01:16]} 20. cxd3 {[%clk 0:00:36]}  Qd6+ {[%clk 0:01:11]} 21. b4 {[%clk 0:00:30]}  Nf4 {[%clk 0:01:08]} 22. Qg4 {[%clk 0:00:23]}  Qxd3+ {[%clk 0:01:03]} 23. Kb2 {[%clk 0:00:21]}  Qd2+ {[%clk 0:01:02]} 24. Ka3 {[%clk 0:00:20]}  Qc3+ {[%clk 0:00:59]} 25. Ka4 {[%clk 0:00:20]}  b5+ {[%clk 0:00:49]} 26. Ka5 {[%clk 0:00:16]}  Qa3+ {[%clk 0:00:44]} 27. Kxb5 {[%clk 0:00:16]}  Qa6+ {[%clk 0:00:40]} 28. Kc5 {[%clk 0:00:16]}  Qc6+ {[%clk 0:00:31]} 29. Kd4 {[%clk 0:00:16]}  Qd5+ {[%clk 0:00:28]} 30. Kc3 {[%clk 0:00:13]}  Qd3+ {[%clk 0:00:25]} 31. Kb2 {[%clk 0:00:13]}  Bxh1 {[%clk 0:00:22]} 32. Rxh1 {[%clk 0:00:12]}  Qd2+ {[%clk 0:00:20]} 33. Kb3 {[%clk 0:00:08]}  Qd5+ {[%clk 0:00:19]} 34. Ka3 {[%clk 0:00:06]}  Nd3 {[%clk 0:00:18]} 35. Rd1 {[%clk 0:00:04]}  Rd8 {[%clk 0:00:13]} 36. Ne2 {[%clk 0:00:03]}  Qb5 {[%clk 0:00:12]} 37. Nc3 {[%clk 0:00:01]}  Qa6+ {[%clk 0:00:12]} 38. Kb3 {[%clk 0:00:00]}  Qb7 {[%clk 0:00:07]} 0-1


[Site "https://www.chess.com"]

[Event "Titled Tuesday Blitz October 31 Late 2023"]
[White "Perez Rodriguez, Jennifer"]
[Black "Souza, Gustavo Horokoski De"]
[WhiteFideId "3507831"]
[BlackFideId "2146584"]
[WhiteElo "2444"]
[BlackElo "2182"]
[Result "0-1"]
[Round "4"]
[TimeControl "180+1"]
[Date "2023.10.31"]
[WhiteClock "0:00:00"]
[BlackClock "0:00:10"]
[Board "126"]

1. e4 {[%clk 0:03:00]}  e6 {[%clk 0:02:58]} 2. d4 {[%clk 0:03:00]}  d5 {[%clk 0:02:58]} 3. Bd3 {[%clk 0:03:01]}  c5 {[%clk 0:02:57]} 4. exd5 {[%clk 0:03:00]}  Qxd5 {[%clk 0:02:55]} 5. Nc3 {[%clk 0:03:00]}  Qxd4 {[%clk 0:02:50]} 6. Nb5 {[%clk 0:02:59]}  Qd8 {[%clk 0:02:41]} 7. Bf4 {[%clk 0:02:58]}  Na6 {[%clk 0:02:40]} 8. Qf3 {[%clk 0:02:59]}  Nf6 {[%clk 0:02:35]} 9. O-O-O {[%clk 0:02:59]}  Nd5 {[%clk 0:02:35]} 10. Be4 {[%clk 0:02:54]}  Qf6 {[%clk 0:02:07]} 11. Bxd5 {[%clk 0:02:10]}  exd5 {[%clk 0:01:58]} 12. Nh3 {[%clk 0:02:09]}  Bxh3 {[%clk 0:01:54]} 13. gxh3 {[%clk 0:02:08]}  Be7 {[%clk 0:01:54]} 14. Rxd5 {[%clk 0:01:51]}  O-O {[%clk 0:01:52]} 15. Qe3 {[%clk 0:01:47]}  Rfe8 {[%clk 0:01:43]} 16. Re1 {[%clk 0:01:37]}  Bf8 {[%clk 0:01:41]} 17. Qxe8 {[%clk 0:01:24]}  Rxe8 {[%clk 0:01:40]} 18. Rxe8 {[%clk 0:01:25]}  Qxf4+ {[%clk 0:01:40]} 19. Kb1 {[%clk 0:01:24]}  Qxf2 {[%clk 0:01:15]} 20. Nc3 {[%clk 0:01:21]}  Nb4 {[%clk 0:01:12]} 21. Rd1 {[%clk 0:00:59]}  Qxc2+ {[%clk 0:01:07]} 22. Ka1 {[%clk 0:00:59]}  g6 {[%clk 0:00:55]} 23. a3 {[%clk 0:00:58]}  Nc6 {[%clk 0:00:43]} 24. Rd7 {[%clk 0:00:49]}  Kg7 {[%clk 0:00:34]} 25. Rxb7 {[%clk 0:00:45]}  Na5 {[%clk 0:00:32]} 26. Rxa7 {[%clk 0:00:20]}  Nb3+ {[%clk 0:00:32]} 27. Ka2 {[%clk 0:00:20]}  c4 {[%clk 0:00:32]} 28. Rc8 {[%clk 0:00:11]}  Nc1+ {[%clk 0:00:18]} 29. Ka1 {[%clk 0:00:11]}  Nd3 {[%clk 0:00:17]} 30. Rb7 {[%clk 0:00:11]}  Qc1+ {[%clk 0:00:12]} 31. Ka2 {[%clk 0:00:11]}  Nc5 {[%clk 0:00:11]} 32. Rcc7 {[%clk 0:00:09]}  Nb3 {[%clk 0:00:08]} 33. Rxf7+ {[%clk 0:00:09]}  Kh6 {[%clk 0:00:07]} 34. Nb1 {[%clk 0:00:09]}  Nd2 {[%clk 0:00:06]} 35. Rxh7+ {[%clk 0:00:09]}  Kg5 {[%clk 0:00:05]} 36. Nxd2 {[%clk 0:00:10]}  Qxd2 {[%clk 0:00:05]} 37. h4+ {[%clk 0:00:08]}  Kg4 {[%clk 0:00:05]} 38. Rhf7 {[%clk 0:00:06]}  Bh6 {[%clk 0:00:05]} 39. Rb4 {[%clk 0:00:04]}  Kh3 {[%clk 0:00:03]} 40. Rxc4 {[%clk 0:00:03]}  Qd5 {[%clk 0:00:04]} 41. Rc7 {[%clk 0:00:03]}  Bc1 {[%clk 0:00:03]} 42. a4 {[%clk 0:00:03]}  Bf4 {[%clk 0:00:02]} 43. Ka3 {[%clk 0:00:01]}  Bxc7 {[%clk 0:00:02]} 44. Ka2 {[%clk 0:00:01]}  Bd6 {[%clk 0:00:02]} 45. b3 {[%clk 0:00:02]}  Qxc4 {[%clk 0:00:02]} 46. bxc4 {[%clk 0:00:02]}  Bc5 {[%clk 0:00:02]} 47. Kb3 {[%clk 0:00:03]}  Kxh4 {[%clk 0:00:03]} 48. Kc3 {[%clk 0:00:04]}  Kh3 {[%clk 0:00:03]} 49. Kd3 {[%clk 0:00:05]}  Kxh2 {[%clk 0:00:04]} 50. Ke4 {[%clk 0:00:06]}  g5 {[%clk 0:00:05]} 51. Kd5 {[%clk 0:00:07]}  g4 {[%clk 0:00:06]} 52. Kxc5 {[%clk 0:00:07]}  g3 {[%clk 0:00:07]} 53. a5 {[%clk 0:00:08]}  g2 {[%clk 0:00:08]} 54. a6 {[%clk 0:00:09]}  g1=Q+ {[%clk 0:00:08]} 55. Kc6 {[%clk 0:00:09]}  Qa7 {[%clk 0:00:09]} 56. Kb5 {[%clk 0:00:08]}  Kg3 {[%clk 0:00:09]} 57. c5 {[%clk 0:00:09]}  Kf4 {[%clk 0:00:10]} 58. c6 {[%clk 0:00:10]}  Ke5 {[%clk 0:00:10]} 59. c7 {[%clk 0:00:00]}  Qxc7 {[%clk 0:00:10]} 0-1


[Site "https://www.chess.com"]

[Event "Titled Tuesday Blitz October 31 Late 2023"]
[White "Mazurkiewicz, Michal"]
[Black "VitaliyChayka"]
[WhiteFideId "1124943"]
[WhiteElo "2437"]
[BlackElo "2157"]
[Result "1-0"]
[Round "4"]
[TimeControl "180+1"]
[Date "2023.10.31"]
[WhiteClock "0:00:12"]
[BlackClock "0:00:02"]
[Board "128"]

1. e4 {[%clk 0:03:00]}  d6 {[%clk 0:02:56]} 2. d4 {[%clk 0:03:00]}  g6 {[%clk 0:02:54]} 3. Nc3 {[%clk 0:02:59]}  c6 {[%clk 0:02:54]} 4. f4 {[%clk 0:03:00]}  d5 {[%clk 0:02:53]} 5. e5 {[%clk 0:02:57]}  h5 {[%clk 0:02:52]} 6. Nf3 {[%clk 0:02:53]}  Nh6 {[%clk 0:02:50]} 7. Be3 {[%clk 0:02:38]}  Bf5 {[%clk 0:02:48]} 8. h3 {[%clk 0:02:34]}  e6 {[%clk 0:02:46]} 9. Bf2 {[%clk 0:02:32]}  Be7 {[%clk 0:02:43]} 10. Be2 {[%clk 0:02:22]}  h4 {[%clk 0:02:37]} 11. Qd2 {[%clk 0:02:17]}  a6 {[%clk 0:02:35]} 12. O-O-O {[%clk 0:02:08]}  Nd7 {[%clk 0:02:34]} 13. Ng5 {[%clk 0:02:08]}  Ng8 {[%clk 0:02:24]} 14. Nf3 {[%clk 0:01:56]}  c5 {[%clk 0:02:15]} 15. dxc5 {[%clk 0:01:43]}  Nxc5 {[%clk 0:02:16]} 16. Nd4 {[%clk 0:01:43]}  Rc8 {[%clk 0:02:13]} 17. Nxf5 {[%clk 0:01:40]}  gxf5 {[%clk 0:02:08]} 18. Kb1 {[%clk 0:01:40]}  Qc7 {[%clk 0:02:02]} 19. Qd4 {[%clk 0:01:25]}  Bf8 {[%clk 0:01:37]} 20. Rc1 {[%clk 0:01:20]}  Ne7 {[%clk 0:01:30]} 21. Na4 {[%clk 0:01:18]}  Nxa4 {[%clk 0:01:26]} 22. Qxa4+ {[%clk 0:01:19]}  Qc6 {[%clk 0:01:22]} 23. Qxc6+ {[%clk 0:01:10]}  Nxc6 {[%clk 0:01:23]} 24. c4 {[%clk 0:01:11]}  dxc4 {[%clk 0:01:15]} 25. Rxc4 {[%clk 0:01:03]}  Be7 {[%clk 0:01:14]} 26. Rhc1 {[%clk 0:01:01]}  Rg8 {[%clk 0:01:12]} 27. Bf3 {[%clk 0:00:59]}  Kd7 {[%clk 0:01:07]} 28. Bb6 {[%clk 0:00:55]}  Bd8 {[%clk 0:00:53]} 29. Rd1+ {[%clk 0:00:50]}  Ke7 {[%clk 0:00:35]} 30. Bc5+ {[%clk 0:00:33]}  Ke8 {[%clk 0:00:35]} 31. Bd6 {[%clk 0:00:29]}  Bb6 {[%clk 0:00:29]} 32. Rdc1 {[%clk 0:00:25]}  Kd7 {[%clk 0:00:27]} 33. Rd1 {[%clk 0:00:25]}  Ke8 {[%clk 0:00:27]} 34. b4 {[%clk 0:00:26]}  Rg6 {[%clk 0:00:20]} 35. a4 {[%clk 0:00:25]}  f6 {[%clk 0:00:18]} 36. b5 {[%clk 0:00:21]}  axb5 {[%clk 0:00:16]} 37. axb5 {[%clk 0:00:21]}  Na7 {[%clk 0:00:15]} 38. Rxc8+ {[%clk 0:00:21]}  Nxc8 {[%clk 0:00:16]} 39. Bxb7 {[%clk 0:00:17]}  Nxd6 {[%clk 0:00:15]} 40. Rxd6 {[%clk 0:00:18]}  Be3 {[%clk 0:00:14]} 41. Rxe6+ {[%clk 0:00:16]}  Kf7 {[%clk 0:00:13]} 42. Bd5 {[%clk 0:00:16]}  Kf8 {[%clk 0:00:12]} 43. b6 {[%clk 0:00:13]}  Bxb6 {[%clk 0:00:09]} 44. Rxb6 {[%clk 0:00:13]}  Rg3 {[%clk 0:00:08]} 45. Rxf6+ {[%clk 0:00:12]}  Ke7 {[%clk 0:00:07]} 46. Rf7+ {[%clk 0:00:13]}  Ke8 {[%clk 0:00:07]} 47. Rxf5 {[%clk 0:00:12]}  Re3 {[%clk 0:00:06]} 48. e6 {[%clk 0:00:11]}  Re1+ {[%clk 0:00:06]} 49. Kc2 {[%clk 0:00:11]}  Re2+ {[%clk 0:00:07]} 50. Kd3 {[%clk 0:00:11]}  Re3+ {[%clk 0:00:02]} 51. Kxe3 {[%clk 0:00:12]} 1-0


[Site "https://www.chess.com"]

[Event "Titled Tuesday Blitz October 31 Late 2023"]
[White "Miszler, Levente"]
[Black "Andreassen, Lars"]
[WhiteFideId "763276"]
[BlackFideId "1504878"]
[WhiteElo "2434"]
[BlackElo "2120"]
[Result "0-1"]
[Round "4"]
[TimeControl "180+1"]
[Date "2023.10.31"]
[WhiteClock "0:01:23"]
[BlackClock "0:01:06"]
[Board "129"]

1. d4 {[%clk 0:03:00]}  d5 {[%clk 0:02:57]} 2. Nf3 {[%clk 0:03:01]}  e6 {[%clk 0:02:57]} 3. Bf4 {[%clk 0:03:01]}  c5 {[%clk 0:02:57]} 4. e3 {[%clk 0:03:01]}  Nc6 {[%clk 0:02:57]} 5. Nbd2 {[%clk 0:02:59]}  Nf6 {[%clk 0:02:55]} 6. c3 {[%clk 0:02:57]}  Bd6 {[%clk 0:02:56]} 7. Bg3 {[%clk 0:02:54]}  O-O {[%clk 0:02:55]} 8. Bd3 {[%clk 0:02:53]}  b6 {[%clk 0:02:54]} 9. Qe2 {[%clk 0:02:51]}  Bb7 {[%clk 0:02:54]} 10. Rd1 {[%clk 0:02:51]}  Re8 {[%clk 0:02:48]} 11. e4 {[%clk 0:02:46]}  dxe4 {[%clk 0:02:48]} 12. Nxe4 {[%clk 0:02:46]}  Nxe4 {[%clk 0:02:48]} 13. Qxe4 {[%clk 0:02:43]}  f5 {[%clk 0:02:48]} 14. Qe2 {[%clk 0:02:34]}  cxd4 {[%clk 0:02:42]} 15. cxd4 {[%clk 0:02:30]}  Bxg3 {[%clk 0:02:29]} 16. hxg3 {[%clk 0:02:29]}  Nxd4 {[%clk 0:02:28]} 17. Nxd4 {[%clk 0:02:27]}  Qxd4 {[%clk 0:02:28]} 18. Bc4 {[%clk 0:02:15]}  Qf6 {[%clk 0:02:23]} 19. Rd7 {[%clk 0:02:10]}  Bxg2 {[%clk 0:02:16]} 20. Rh2 {[%clk 0:02:02]}  Bd5 {[%clk 0:01:59]} 21. Bb5 {[%clk 0:01:58]}  Red8 {[%clk 0:01:36]} 22. Rxd8+ {[%clk 0:01:35]}  Rxd8 {[%clk 0:01:36]} 23. Rh4 {[%clk 0:01:36]}  h6 {[%clk 0:01:28]} 24. Ra4 {[%clk 0:01:35]}  Qe7 {[%clk 0:01:24]} 25. Rd4 {[%clk 0:01:29]}  Qc5 {[%clk 0:01:19]} 26. Bc4 {[%clk 0:01:23]}  Qxd4 {[%clk 0:01:06]} 0-1


[Site "https://www.chess.com"]

[Event "Titled Tuesday Blitz October 31 Late 2023"]
[White "Mindhunter08"]
[Black "Freeeeeeeeeeeeeeeeee"]
[WhiteElo "2431"]
[BlackElo "2039"]
[Result "1-0"]
[Round "4"]
[TimeControl "180+1"]
[Date "2023.10.31"]
[WhiteClock "0:01:02"]
[BlackClock "0:00:21"]
[Board "130"]

1. e4 {[%clk 0:03:00]}  e5 {[%clk 0:02:54]} 2. Nf3 {[%clk 0:03:00]}  Nc6 {[%clk 0:02:49]} 3. Bc4 {[%clk 0:03:00]}  Nf6 {[%clk 0:02:47]} 4. d3 {[%clk 0:03:00]}  Be7 {[%clk 0:02:45]} 5. c3 {[%clk 0:03:00]}  O-O {[%clk 0:02:45]} 6. O-O {[%clk 0:02:59]}  d6 {[%clk 0:02:45]} 7. a4 {[%clk 0:02:57]}  h6 {[%clk 0:02:40]} 8. Nbd2 {[%clk 0:02:57]}  Be6 {[%clk 0:02:40]} 9. Bb3 {[%clk 0:02:54]}  Na5 {[%clk 0:02:38]} 10. Bc2 {[%clk 0:02:50]}  c5 {[%clk 0:02:37]} 11. Re1 {[%clk 0:02:49]}  Nc6 {[%clk 0:02:33]} 12. Nf1 {[%clk 0:02:49]}  Re8 {[%clk 0:02:31]} 13. Ng3 {[%clk 0:02:49]}  Bf8 {[%clk 0:02:24]} 14. Qe2 {[%clk 0:02:37]}  g6 {[%clk 0:02:18]} 15. h3 {[%clk 0:02:31]}  Bg7 {[%clk 0:02:17]} 16. Be3 {[%clk 0:02:31]}  b6 {[%clk 0:02:17]} 17. Rad1 {[%clk 0:02:23]}  d5 {[%clk 0:02:14]} 18. Bc1 {[%clk 0:02:04]}  d4 {[%clk 0:02:01]} 19. Nh2 {[%clk 0:01:54]}  Qc7 {[%clk 0:01:48]} 20. Rf1 {[%clk 0:01:52]}  dxc3 {[%clk 0:01:39]} 21. bxc3 {[%clk 0:01:51]}  Rad8 {[%clk 0:01:22]} 22. f4 {[%clk 0:01:51]}  c4 {[%clk 0:01:21]} 23. f5 {[%clk 0:01:43]}  cxd3 {[%clk 0:01:20]} 24. Bxd3 {[%clk 0:01:41]}  Bc8 {[%clk 0:01:11]} 25. fxg6 {[%clk 0:01:33]}  fxg6 {[%clk 0:01:09]} 26. Bxh6 {[%clk 0:01:33]}  Bxh6 {[%clk 0:01:05]} 27. Rxf6 {[%clk 0:01:33]}  Qg7 {[%clk 0:00:59]} 28. Rxc6 {[%clk 0:01:32]}  Bb7 {[%clk 0:00:54]} 29. Bc4+ {[%clk 0:01:24]}  Kh8 {[%clk 0:00:50]} 30. Rcd6 {[%clk 0:01:13]}  Rxd6 {[%clk 0:00:42]} 31. Rxd6 {[%clk 0:01:14]}  Bf4 {[%clk 0:00:42]} 32. Qg4 {[%clk 0:01:09]}  Bxg3 {[%clk 0:00:25]} 33. Qxg3 {[%clk 0:01:06]}  Bxe4 {[%clk 0:00:24]} 34. Qh4+ {[%clk 0:01:02]}  Qh7 {[%clk 0:00:21]} 35. Qxe4 {[%clk 0:01:02]} 1-0


[Site "https://www.chess.com"]

[Event "Titled Tuesday Blitz October 31 Late 2023"]
[White "Gabdushev, Ruslan"]
[Black "Burke, Paul"]
[WhiteFideId "4137833"]
[BlackFideId "2605767"]
[WhiteElo "2423"]
[BlackElo "1890"]
[Result "1-0"]
[Round "4"]
[TimeControl "180+1"]
[Date "2023.10.31"]
[WhiteClock "0:01:08"]
[BlackClock "0:00:00"]
[Board "133"]

1. b3 {[%clk 0:03:00]}  a6 {[%clk 0:02:59]} 2. Bb2 {[%clk 0:03:00]}  d6 {[%clk 0:02:59]} 3. e3 {[%clk 0:02:58]}  Nd7 {[%clk 0:02:59]} 4. c4 {[%clk 0:02:49]}  Ngf6 {[%clk 0:02:59]} 5. d4 {[%clk 0:02:47]}  g6 {[%clk 0:02:58]} 6. Nf3 {[%clk 0:02:43]}  Bg7 {[%clk 0:02:58]} 7. Be2 {[%clk 0:02:42]}  O-O {[%clk 0:02:58]} 8. O-O {[%clk 0:02:41]}  Re8 {[%clk 0:02:56]} 9. Nc3 {[%clk 0:02:39]}  c6 {[%clk 0:02:56]} 10. Qc2 {[%clk 0:02:30]}  Qc7 {[%clk 0:02:40]} 11. h3 {[%clk 0:02:27]}  e5 {[%clk 0:02:39]} 12. Rfd1 {[%clk 0:02:26]}  e4 {[%clk 0:02:27]} 13. Nd2 {[%clk 0:02:24]}  d5 {[%clk 0:02:24]} 14. Rdc1 {[%clk 0:02:17]}  Qd8 {[%clk 0:01:59]} 15. b4 {[%clk 0:02:06]}  h6 {[%clk 0:01:40]} 16. a4 {[%clk 0:02:04]}  Kh7 {[%clk 0:01:39]} 17. b5 {[%clk 0:02:02]}  axb5 {[%clk 0:01:37]} 18. axb5 {[%clk 0:01:54]}  Rxa1 {[%clk 0:01:36]} 19. Rxa1 {[%clk 0:01:55]}  dxc4 {[%clk 0:00:52]} 20. Nxc4 {[%clk 0:01:52]}  Nd5 {[%clk 0:00:47]} 21. bxc6 {[%clk 0:01:45]}  bxc6 {[%clk 0:00:46]} 22. Nxe4 {[%clk 0:01:44]}  N7f6 {[%clk 0:00:39]} 23. Ned6 {[%clk 0:01:40]}  Rf8 {[%clk 0:00:24]} 24. Ra7 {[%clk 0:01:31]}  Be6 {[%clk 0:00:23]} 25. Ba3 {[%clk 0:01:26]}  Ne8 {[%clk 0:00:20]} 26. Nxe8 {[%clk 0:01:22]}  Rxe8 {[%clk 0:00:20]} 27. Nd6 {[%clk 0:01:18]}  Rf8 {[%clk 0:00:16]} 28. Qxc6 {[%clk 0:01:16]}  Qg5 {[%clk 0:00:00]} 29. Ne4 {[%clk 0:01:08]} 1-0


[Site "https://www.chess.com"]

[Event "Titled Tuesday Blitz October 31 Late 2023"]
[White "Martinez Ramirez, Lennis"]
[Black "Martinez, Shawn"]
[WhiteFideId "3509079"]
[BlackFideId "2039770"]
[WhiteElo "2687"]
[BlackElo "2362"]
[Result "1-0"]
[Round "4"]
[TimeControl "180+1"]
[Date "2023.10.31"]
[WhiteClock "0:00:18"]
[BlackClock "0:00:00"]
[Board "135"]

1. e4 {[%clk 0:02:56]}  c5 {[%clk 0:02:55]} 2. Nf3 {[%clk 0:02:53]}  e6 {[%clk 0:02:53]} 3. b3 {[%clk 0:02:53]}  a6 {[%clk 0:02:51]} 4. Bb2 {[%clk 0:02:54]}  b5 {[%clk 0:02:51]} 5. a4 {[%clk 0:02:53]}  b4 {[%clk 0:02:45]} 6. d3 {[%clk 0:02:52]}  Bb7 {[%clk 0:02:45]} 7. g3 {[%clk 0:02:50]}  d5 {[%clk 0:02:42]} 8. exd5 {[%clk 0:02:49]}  Bxd5 {[%clk 0:02:39]} 9. Bg2 {[%clk 0:02:49]}  Nf6 {[%clk 0:02:38]} 10. O-O {[%clk 0:02:49]}  Be7 {[%clk 0:02:38]} 11. Nbd2 {[%clk 0:02:48]}  O-O {[%clk 0:02:38]} 12. Nc4 {[%clk 0:02:49]}  Nc6 {[%clk 0:02:36]} 13. a5 {[%clk 0:02:46]}  Nd4 {[%clk 0:02:27]} 14. Nxd4 {[%clk 0:02:46]}  Bxg2 {[%clk 0:02:26]} 15. Kxg2 {[%clk 0:02:45]}  cxd4 {[%clk 0:02:26]} 16. Qf3 {[%clk 0:02:32]}  Rc8 {[%clk 0:02:20]} 17. Rfe1 {[%clk 0:02:29]}  Rc5 {[%clk 0:02:17]} 18. Re2 {[%clk 0:02:29]}  Rf5 {[%clk 0:02:16]} 19. Qc6 {[%clk 0:02:27]}  Nd5 {[%clk 0:02:10]} 20. Qxa6 {[%clk 0:02:22]}  Nc3 {[%clk 0:01:59]} 21. Bxc3 {[%clk 0:02:20]}  bxc3 {[%clk 0:01:42]} 22. Qb7 {[%clk 0:02:18]}  Bc5 {[%clk 0:01:23]} 23. a6 {[%clk 0:02:17]}  Rd5 {[%clk 0:01:19]} 24. a7 {[%clk 0:02:15]}  Qa8 {[%clk 0:01:14]} 25. Qxa8 {[%clk 0:02:14]}  Rxa8 {[%clk 0:01:14]} 26. Re5 {[%clk 0:02:15]}  Rxa7 {[%clk 0:01:11]} 27. Rxa7 {[%clk 0:02:14]}  Bxa7 {[%clk 0:01:11]} 28. Rxd5 {[%clk 0:02:14]}  exd5 {[%clk 0:01:11]} 29. Na5 {[%clk 0:02:06]}  Kf8 {[%clk 0:00:55]} 30. Nc6 {[%clk 0:02:05]}  Bb6 {[%clk 0:00:55]} 31. Nb4 {[%clk 0:02:05]}  Bd8 {[%clk 0:00:46]} 32. Nxd5 {[%clk 0:02:05]}  f5 {[%clk 0:00:46]} 33. Kf3 {[%clk 0:02:03]}  Kf7 {[%clk 0:00:46]} 34. g4 {[%clk 0:01:49]}  g6 {[%clk 0:00:39]} 35. gxf5 {[%clk 0:01:47]}  gxf5 {[%clk 0:00:39]} 36. Kg3 {[%clk 0:01:38]}  Ke6 {[%clk 0:00:32]} 37. Nf4+ {[%clk 0:01:38]}  Kf6 {[%clk 0:00:30]} 38. Ne2 {[%clk 0:01:37]}  Ke5 {[%clk 0:00:27]} 39. f4+ {[%clk 0:01:35]}  Kd5 {[%clk 0:00:27]} 40. b4 {[%clk 0:01:29]}  Be7 {[%clk 0:00:22]} 41. b5 {[%clk 0:01:25]}  Bf6 {[%clk 0:00:20]} 42. b6 {[%clk 0:01:25]}  Kc6 {[%clk 0:00:20]} 43. Ng1 {[%clk 0:01:06]}  Kxb6 {[%clk 0:00:19]} 44. Nf3 {[%clk 0:01:07]}  Kb5 {[%clk 0:00:19]} 45. Ng5 {[%clk 0:01:07]}  h6 {[%clk 0:00:16]} 46. Nf7 {[%clk 0:01:06]}  h5 {[%clk 0:00:16]} 47. Nd6+ {[%clk 0:01:06]}  Kb4 {[%clk 0:00:15]} 48. Nxf5 {[%clk 0:01:07]}  Ka3 {[%clk 0:00:15]} 49. Kf3 {[%clk 0:00:34]}  Kb2 {[%clk 0:00:14]} 50. Ng3 {[%clk 0:00:34]}  h4 {[%clk 0:00:12]} 51. Ne4 {[%clk 0:00:33]}  Kxc2 {[%clk 0:00:11]} 52. Nxf6 {[%clk 0:00:32]}  Kd1 {[%clk 0:00:11]} 53. Ke4 {[%clk 0:00:17]}  c2 {[%clk 0:00:11]} 54. Kxd4 {[%clk 0:00:18]}  c1=Q {[%clk 0:00:11]} 55. Ke4 {[%clk 0:00:19]}  Qc6+ {[%clk 0:00:09]} 56. Nd5 {[%clk 0:00:19]}  Ke2 {[%clk 0:00:09]} 57. f5 {[%clk 0:00:18]}  Qa4+ {[%clk 0:00:06]} 58. d4 {[%clk 0:00:18]}  Qc2+ {[%clk 0:00:04]} 59. Ke5 {[%clk 0:00:18]}  Kf3 {[%clk 0:00:04]} 60. f6 {[%clk 0:00:18]}  Qe4+ {[%clk 0:00:04]} 61. Kd6 {[%clk 0:00:17]}  Qxd4 {[%clk 0:00:00]} 62. f7 {[%clk 0:00:18]} 1-0


[Site "https://www.chess.com"]